[Event "Live Chess"]
[Site "Chess.com"]
[Date "2023.05.21"]
[Round "-"]
[White "ranvir123"]
[Black "f4nomore"]
[Result "0-1"]
[WhiteElo "961"]
[BlackElo "1407"]
[TimeControl "300"]
[EndTime "3:16:37 PDT"]
[Termination "f4nomore won by resignation"]

1. e4 {[%clk 0:04:58.3]} 1... g6 {[%clk 0:04:59.9]} 2. Nf3 {[%clk 0:04:56.2]}
2... Bg7 {[%clk 0:04:59.8]} 3. Nc3 {[%clk 0:04:54.9]} 3... d6 {[%clk 0:04:59.7]}
4. d4 {[%clk 0:04:54.3]} 4... Nd7 {[%clk 0:04:57.5]} 5. Bc4 {[%clk 0:04:53.9]}
5... b6 {[%clk 0:04:56.2]} 6. Bd5 {[%clk 0:04:49.8]} 6... Rb8 {[%clk 0:04:53]}
7. Bg5 {[%clk 0:04:45.9]} 7... Ngf6 {[%clk 0:04:48.2]} 8. Bxf6 {[%clk
0:04:44.1]} 8... Nxf6 {[%clk 0:04:45.6]} 9. Bc6+ {[%clk 0:04:41.9]} 9... Bd7
{[%clk 0:04:43.3]} 10. Bxd7+ {[%clk 0:04:39.3]} 10... Qxd7 {[%clk 0:04:41.9]}
11. e5 {[%clk 0:04:38.8]} 11... dxe5 {[%clk 0:04:39.8]} 12. dxe5 {[%clk
0:04:37.1]} 12... Qxd1+ {[%clk 0:04:38.2]} 13. Rxd1 {[%clk 0:04:36.7]} 13... Ng4
{[%clk 0:04:36]} 14. O-O {[%clk 0:04:35.3]} 14... Nxe5 {[%clk 0:04:33.7]} 15.
Nxe5 {[%clk 0:04:33.9]} 15... Bxe5 {[%clk 0:04:31.5]} 16. Rfe1 {[%clk
0:04:32.4]} 16... Bd6 {[%clk 0:04:27]} 17. Nb5 {[%clk 0:04:28.6]} 17... O-O
{[%clk 0:04:23.2]} 18. Nxd6 {[%clk 0:04:26.1]} 18... exd6 {[%clk 0:04:18.9]} 19.
Re7 {[%clk 0:04:24.5]} 19... Rbc8 {[%clk 0:04:17]} 20. b4 {[%clk 0:04:18]} 20...
a6 {[%clk 0:04:13.9]} 21. c4 {[%clk 0:04:16.8]} 21... c5 {[%clk 0:04:09.9]} 22.
bxc5 {[%clk 0:04:15.8]} 22... Rxc5 {[%clk 0:04:05.3]} 23. Rxd6 {[%clk
0:04:12.3]} 23... Rxc4 {[%clk 0:04:03.2]} 24. h3 {[%clk 0:04:11]} 24... Ra4
{[%clk 0:03:57.1]} 25. Rxb6 {[%clk 0:04:09]} 25... Rxa2 {[%clk 0:03:55.7]} 26.
Rbb7 {[%clk 0:04:04.5]} 26... a5 {[%clk 0:03:53.4]} 27. Ra7 {[%clk 0:04:03.1]}
27... a4 {[%clk 0:03:52.1]} 28. Re3 {[%clk 0:03:59.7]} 28... Kg7 {[%clk
0:03:48.2]} 29. Kh2 {[%clk 0:03:58.5]} 29... Rb8 {[%clk 0:03:43.5]} 30. Ree7
{[%clk 0:03:55.1]} 30... Rf8 {[%clk 0:03:40.1]} 31. Kg3 {[%clk 0:03:52.3]} 31...
a3 {[%clk 0:03:37.1]} 32. Re3 {[%clk 0:03:50]} 32... h5 {[%clk 0:03:19.9]} 33.
Rexa3 {[%clk 0:03:47.7]} 33... Rxa3+ {[%clk 0:03:18.8]} 34. Rxa3 {[%clk
0:03:47.3]} 34... Re8 {[%clk 0:03:17.3]} 35. Ra7 {[%clk 0:03:46]} 35... Re2
{[%clk 0:03:15.4]} 36. Kf3 {[%clk 0:03:45.3]} 36... Rc2 {[%clk 0:03:13.1]} 37.
g4 {[%clk 0:03:40.8]} 37... Rc3+ {[%clk 0:03:10.7]} 38. Kg2 {[%clk 0:03:36.9]}
38... hxg4 {[%clk 0:03:04.4]} 39. hxg4 {[%clk 0:03:35.9]} 39... Rc2 {[%clk
0:02:59]} 40. Kg3 {[%clk 0:03:34.5]} 40... Rc3+ {[%clk 0:02:56.1]} 41. f3 {[%clk
0:03:34]} 41... Kf6 {[%clk 0:02:50.6]} 42. g5+ {[%clk 0:03:30]} 42... Kg7 {[%clk
0:02:44.8]} 43. Kg4 {[%clk 0:03:28.1]} 43... Rc4+ {[%clk 0:02:40]} 44. f4 {[%clk
0:03:26.9]} 44... Rc1 {[%clk 0:02:37.9]} 45. f5 {[%clk 0:03:23.8]} 45... Rg1+
{[%clk 0:02:32.1]} 46. Kf4 {[%clk 0:03:21.8]} 46... Rf1+ {[%clk 0:02:29.9]} 47.
Kg4 {[%clk 0:03:12.5]} 47... Rxf5 {[%clk 0:02:25.7]} 48. Kh4 {[%clk 0:03:10.5]}
48... Rf4+ {[%clk 0:02:20.3]} 49. Kg3 {[%clk 0:03:09.3]} 49... Rb4 {[%clk
0:02:15.6]} 50. Kf3 {[%clk 0:03:05.5]} 50... Rb5 {[%clk 0:02:12.3]} 51. Kf4
{[%clk 0:03:04.4]} 51... Rc5 {[%clk 0:02:08]} 52. Kg4 {[%clk 0:03:03.3]} 52...
Rd5 {[%clk 0:02:06]} 53. Kf4 {[%clk 0:03:02.4]} 53... Rd6 {[%clk 0:01:59.8]} 54.
Ke5 {[%clk 0:02:57.6]} 54... Re6+ {[%clk 0:01:54.7]} 55. Kf4 {[%clk 0:02:54.4]}
55... Rb6 {[%clk 0:01:52.5]} 56. Ke5 {[%clk 0:02:51.9]} 56... Rb5+ {[%clk
0:01:51.3]} 57. Kf4 {[%clk 0:02:50.1]} 57... Rb4+ {[%clk 0:01:48.8]} 58. Ke5
{[%clk 0:02:49.1]} 58... Rg4 {[%clk 0:01:45.7]} 59. Kd6 {[%clk 0:02:45.7]} 59...
Rxg5 {[%clk 0:01:44.1]} 60. Kc6 {[%clk 0:02:42.8]} 60... Rf5 {[%clk 0:01:43]}
61. Kd6 {[%clk 0:02:42]} 61... Kh6 {[%clk 0:01:41]} 0-1

[Event "Live Chess"]
[Site "Chess.com"]
[Date "2023.05.21"]
[Round "-"]
[White "MarkLim1"]
[Black "Biranidun"]
[Result "0-1"]
[WhiteElo "1706"]
[BlackElo "2540"]
[TimeControl "300"]
[EndTime "3:16:44 PDT"]
[Termination "Biranidun won by resignation"]

1. d4 {[%clk 0:04:59.1]} 1... Nf6 {[%clk 0:04:58.9]} 2. Nf3 {[%clk 0:04:58.3]}
2... g6 {[%clk 0:04:57.5]} 3. c4 {[%clk 0:04:57.2]} 3... Bg7 {[%clk 0:04:56.8]}
4. Nc3 {[%clk 0:04:56.5]} 4... O-O {[%clk 0:04:56.3]} 5. e4 {[%clk 0:04:55.9]}
5... d6 {[%clk 0:04:56]} 6. Be2 {[%clk 0:04:55.4]} 6... e5 {[%clk 0:04:55.1]} 7.
d5 {[%clk 0:04:54.7]} 7... a5 {[%clk 0:04:53.9]} 8. O-O {[%clk 0:04:53.9]} 8...
Na6 {[%clk 0:04:52.1]} 9. Bg5 {[%clk 0:04:53.2]} 9... h6 {[%clk 0:04:51.4]} 10.
Bh4 {[%clk 0:04:52]} 10... Bd7 {[%clk 0:04:49.8]} 11. Nd2 {[%clk 0:04:50.6]}
11... Nc5 {[%clk 0:04:48.1]} 12. b3 {[%clk 0:04:41.7]} 12... Nfxe4 {[%clk
0:04:46.4]} 13. Bxd8 {[%clk 0:04:38.4]} 13... Nxc3 {[%clk 0:04:45.4]} 14. Qe1
{[%clk 0:04:31.8]} 14... Raxd8 {[%clk 0:04:43.8]} 15. Rc1 {[%clk 0:04:22.9]}
15... e4 {[%clk 0:04:39.1]} 16. a3 {[%clk 0:04:09.4]} 16... Rfe8 {[%clk
0:04:37.6]} 17. b4 {[%clk 0:04:07.5]} 17... axb4 {[%clk 0:04:37.5]} 18. axb4
{[%clk 0:04:06.4]} 18... Nd3 {[%clk 0:04:37.1]} 19. Bxd3 {[%clk 0:03:58.7]}
19... exd3 {[%clk 0:04:37]} 20. Qxe8+ {[%clk 0:03:55.5]} 20... Rxe8 {[%clk
0:04:35.9]} 21. Kh1 {[%clk 0:03:45.8]} 21... Re2 {[%clk 0:04:30]} 22. Nf3 {[%clk
0:03:43.3]} 22... Bg4 {[%clk 0:04:22.3]} 23. h3 {[%clk 0:03:26.3]} 23... Bxf3
{[%clk 0:04:20.9]} 24. gxf3 {[%clk 0:03:25.6]} 24... d2 {[%clk 0:04:20.8]} 0-1

[Event "Live Chess"]
[Site "Chess.com"]
[Date "2023.05.21"]
[Round "-"]
[White "Tiltador"]
[Black "KeithArkell"]
[Result "0-1"]
[WhiteElo "845"]
[BlackElo "2495"]
[TimeControl "300"]
[EndTime "3:16:48 PDT"]
[Termination "KeithArkell won by checkmate"]

1. e4 {[%clk 0:04:57.7]} 1... c6 {[%clk 0:04:58.8]} 2. Nf3 {[%clk 0:04:56.7]}
2... d5 {[%clk 0:04:58.1]} 3. exd5 {[%clk 0:04:54.6]} 3... cxd5 {[%clk
0:04:56.9]} 4. Bd3 {[%clk 0:04:52.1]} 4... Nf6 {[%clk 0:04:55.8]} 5. O-O {[%clk
0:04:50.9]} 5... Nc6 {[%clk 0:04:55]} 6. Nc3 {[%clk 0:04:48.2]} 6... Bg4 {[%clk
0:04:53.2]} 7. Be2 {[%clk 0:04:44.6]} 7... e6 {[%clk 0:04:52.1]} 8. a3 {[%clk
0:04:34.2]} 8... Bd6 {[%clk 0:04:49.3]} 9. b4 {[%clk 0:04:30.6]} 9... a6 {[%clk
0:04:47.3]} 10. Na4 {[%clk 0:04:21.3]} 10... O-O {[%clk 0:04:39.7]} 11. Nc5
{[%clk 0:04:17.7]} 11... Qc7 {[%clk 0:04:36.1]} 12. Bb2 {[%clk 0:04:12.1]} 12...
Bxf3 {[%clk 0:04:27.6]} 13. Bxf3 {[%clk 0:04:07.5]} 13... Bxh2+ {[%clk
0:04:26.2]} 14. Kh1 {[%clk 0:04:02.7]} 14... Be5 {[%clk 0:04:25.2]} 15. Bxe5
{[%clk 0:03:59.6]} 15... Nxe5 {[%clk 0:04:24.4]} 16. d4 {[%clk 0:03:53.9]} 16...
Nxf3 {[%clk 0:04:22.7]} 17. Qxf3 {[%clk 0:03:52.2]} 17... b6 {[%clk 0:04:20.6]}
18. Nd3 {[%clk 0:03:47.9]} 18... Ne4 {[%clk 0:04:19.7]} 19. Rad1 {[%clk
0:03:42.2]} 19... Qxc2 {[%clk 0:04:16]} 20. Ne5 {[%clk 0:03:29.6]} 20... Rac8
{[%clk 0:04:09.3]} 21. Ng4 {[%clk 0:03:00.9]} 21... Nd2 {[%clk 0:04:03.7]} 22.
Rxd2 {[%clk 0:02:44]} 22... Qxd2 {[%clk 0:04:02.1]} 23. Qg3 {[%clk 0:02:37.7]}
23... Qg5 {[%clk 0:03:51.8]} 24. Ne5 {[%clk 0:02:28.7]} 24... Qxg3 {[%clk
0:03:50.4]} 25. fxg3 {[%clk 0:02:27.5]} 25... Rc3 {[%clk 0:03:48.9]} 26. Kh2
{[%clk 0:02:24.4]} 26... f6 {[%clk 0:03:47.1]} 27. Nd7 {[%clk 0:02:19.9]} 27...
Rd8 {[%clk 0:03:45.8]} 28. Nxb6 {[%clk 0:02:18]} 28... Rxa3 {[%clk 0:03:44.6]}
29. Rc1 {[%clk 0:02:08.6]} 29... Rb3 {[%clk 0:03:40.2]} 30. Rc8 {[%clk
0:02:05.5]} 30... Rxc8 {[%clk 0:03:38.7]} 31. Nxc8 {[%clk 0:02:04.3]} 31... Rxb4
{[%clk 0:03:37.8]} 32. Nd6 {[%clk 0:02:03.2]} 32... a5 {[%clk 0:03:36.2]} 33. g4
{[%clk 0:01:55.3]} 33... a4 {[%clk 0:03:35.5]} 34. g3 {[%clk 0:01:49.7]} 34...
a3 {[%clk 0:03:34.5]} 35. Kh3 {[%clk 0:01:48.8]} 35... a2 {[%clk 0:03:33.5]} 36.
Kh4 {[%clk 0:01:47.8]} 36... a1=Q {[%clk 0:03:31.9]} 37. g5 {[%clk 0:01:46.8]}
37... f5 {[%clk 0:03:30.3]} 38. g4 {[%clk 0:01:40.9]} 38... Qe1+ {[%clk
0:03:29.2]} 39. Kh5 {[%clk 0:01:39.5]} 39... Qh1# {[%clk 0:03:27.6]} 0-1

[Event "Live Chess"]
[Site "Chess.com"]
[Date "2023.05.21"]
[Round "-"]
[White "Berdgross"]
[Black "Davidagye"]
[Result "0-1"]
[WhiteElo "662"]
[BlackElo "1676"]
[TimeControl "300"]
[EndTime "3:16:52 PDT"]
[Termination "Davidagye won by resignation"]

1. d4 {[%clk 0:04:56.4]} 1... d5 {[%clk 0:04:58.8]} 2. e3 {[%clk 0:03:54.4]}
2... Nf6 {[%clk 0:04:55.7]} 3. Nf3 {[%clk 0:03:51.2]} 3... Bg4 {[%clk
0:04:54.5]} 4. Be2 {[%clk 0:03:48.7]} 4... e6 {[%clk 0:04:53.9]} 5. h3 {[%clk
0:03:45.8]} 5... Bxf3 {[%clk 0:04:52.5]} 6. Bxf3 {[%clk 0:03:44.9]} 6... Nbd7
{[%clk 0:04:51.5]} 7. Nc3 {[%clk 0:03:43]} 7... Bb4 {[%clk 0:04:50.8]} 8. Bd2
{[%clk 0:03:40.4]} 8... O-O {[%clk 0:04:48.9]} 9. a3 {[%clk 0:03:39.2]} 9...
Bxc3 {[%clk 0:04:45.7]} 10. Bxc3 {[%clk 0:03:36.6]} 10... c5 {[%clk 0:04:44.9]}
11. dxc5 {[%clk 0:03:33.8]} 11... Nxc5 {[%clk 0:04:43.6]} 12. Bb4 {[%clk
0:03:29.5]} 12... Rc8 {[%clk 0:04:41.4]} 13. O-O {[%clk 0:03:22.7]} 13... a5
{[%clk 0:04:38.2]} 14. Bxc5 {[%clk 0:03:20.9]} 14... Rxc5 {[%clk 0:04:34.8]} 15.
b4 {[%clk 0:03:15.7]} 15... axb4 {[%clk 0:04:32.6]} 16. axb4 {[%clk 0:03:14.3]}
16... Rc4 {[%clk 0:04:31.9]} 17. Ra4 {[%clk 0:03:09.9]} 17... b5 {[%clk
0:04:29.9]} 18. Ra1 {[%clk 0:02:54.5]} 18... Qc7 {[%clk 0:04:27.7]} 19. Rc1
{[%clk 0:02:49.6]} 19... Rc3 {[%clk 0:04:24.7]} 20. e4 {[%clk 0:02:46.5]} 20...
dxe4 {[%clk 0:04:22.6]} 21. Be2 {[%clk 0:02:42.2]} 21... Rd8 {[%clk 0:04:16.6]}
22. Qe1 {[%clk 0:02:39]} 22... Rxc2 {[%clk 0:04:14.3]} 23. Rxc2 {[%clk
0:02:35.7]} 23... Qxc2 {[%clk 0:04:13.2]} 24. Bxb5 {[%clk 0:02:32.6]} 24... Rb8
{[%clk 0:04:07]} 25. Be2 {[%clk 0:02:25.2]} 25... Nd5 {[%clk 0:04:03]} 26. Bc4
{[%clk 0:02:21.5]} 26... Qxc4 {[%clk 0:03:57.2]} 0-1

[Event "Live Chess"]
[Site "Chess.com"]
[Date "2023.05.21"]
[Round "-"]
[White "TheSmoulderingMaster"]
[Black "Lewstar1"]
[Result "1-0"]
[WhiteElo "1697"]
[BlackElo "434"]
[TimeControl "300"]
[EndTime "3:16:58 PDT"]
[Termination "TheSmoulderingMaster won by resignation"]

1. e4 {[%clk 0:04:59.3]} 1... d5 {[%clk 0:04:58.9]} 2. exd5 {[%clk 0:04:58]}
2... Qxd5 {[%clk 0:04:58.6]} 3. Nc3 {[%clk 0:04:57.3]} 3... Qa5 {[%clk
0:04:56.6]} 4. d4 {[%clk 0:04:56.3]} 4... Nf6 {[%clk 0:04:52.9]} 5. Nf3 {[%clk
0:04:55.3]} 5... Nc6 {[%clk 0:04:49.1]} 6. Bc4 {[%clk 0:04:54.1]} 6... Bf5
{[%clk 0:04:45.8]} 7. O-O {[%clk 0:04:52.8]} 7... O-O-O {[%clk 0:04:43.1]} 8. d5
{[%clk 0:04:50.3]} 8... Nb4 {[%clk 0:04:31.4]} 9. a3 {[%clk 0:04:47.7]} 9...
Nxc2 {[%clk 0:04:29.6]} 10. Ra2 {[%clk 0:04:44]} 10... g6 {[%clk 0:04:15.4]} 11.
b4 {[%clk 0:04:41.5]} 11... Nxb4 {[%clk 0:04:11]} 12. axb4 {[%clk 0:04:39.1]}
12... Qxb4 {[%clk 0:04:06.6]} 13. Bd2 {[%clk 0:04:36]} 13... Qxc4 {[%clk
0:04:03.8]} 14. Rxa7 {[%clk 0:04:33.9]} 14... Nxd5 {[%clk 0:03:45.6]} 15. Ra8+
{[%clk 0:04:31.7]} 15... Kd7 {[%clk 0:03:43.3]} 16. Ne5+ {[%clk 0:04:30.9]}
16... Kd6 {[%clk 0:03:37.8]} 17. Nxc4+ {[%clk 0:04:28.8]} 17... Kc5 {[%clk
0:03:36]} 18. Rxd8 {[%clk 0:04:20.8]} 18... Nxc3 {[%clk 0:03:32]} 19. Bxc3
{[%clk 0:04:19.5]} 19... Bg7 {[%clk 0:03:30.7]} 20. Rxh8 {[%clk 0:04:17.1]}
20... Bxc3 {[%clk 0:03:27.7]} 21. Rxh7 {[%clk 0:04:14.4]} 21... g5 {[%clk
0:03:23.4]} 22. Rxf7 {[%clk 0:04:12.5]} 22... Be6 {[%clk 0:03:14.3]} 23. Rxe7
{[%clk 0:04:09.1]} 23... Bxc4 {[%clk 0:03:11.7]} 24. Rxc7+ {[%clk 0:04:08]}
24... Kb4 {[%clk 0:03:09.6]} 25. Qb1+ {[%clk 0:04:05]} 25... Ka3 {[%clk
0:03:07.9]} 26. Rxc4 {[%clk 0:04:01.5]} 26... Bb4 {[%clk 0:03:04.3]} 27. Rxb4
{[%clk 0:03:59.1]} 1-0

[Event "Live Chess"]
[Site "Chess.com"]
[Date "2023.05.21"]
[Round "-"]
[White "MMmaaxxxx"]
[Black "RockTroll"]
[Result "0-1"]
[WhiteElo "2028"]
[BlackElo "2221"]
[TimeControl "300"]
[EndTime "3:17:07 PDT"]
[Termination "RockTroll won by checkmate"]

1. e4 {[%clk 0:04:59.4]} 1... d5 {[%clk 0:04:58.4]} 2. exd5 {[%clk 0:04:59.3]}
2... Qxd5 {[%clk 0:04:58.3]} 3. Nf3 {[%clk 0:04:58.7]} 3... Nf6 {[%clk
0:04:55.1]} 4. Be2 {[%clk 0:04:57.9]} 4... c6 {[%clk 0:04:53.1]} 5. d4 {[%clk
0:04:57.2]} 5... Bg4 {[%clk 0:04:50.4]} 6. Be3 {[%clk 0:04:56]} 6... e6 {[%clk
0:04:49.1]} 7. c4 {[%clk 0:04:55]} 7... Qd8 {[%clk 0:04:47.7]} 8. Nc3 {[%clk
0:04:53.8]} 8... Bb4 {[%clk 0:04:46]} 9. a3 {[%clk 0:04:52.2]} 9... Bxc3+ {[%clk
0:04:44.3]} 10. bxc3 {[%clk 0:04:52.1]} 10... O-O {[%clk 0:04:43.1]} 11. h3
{[%clk 0:04:51.1]} 11... Bxf3 {[%clk 0:04:41.8]} 12. Bxf3 {[%clk 0:04:51]} 12...
Nbd7 {[%clk 0:04:41.3]} 13. O-O {[%clk 0:04:50.2]} 13... Nb6 {[%clk 0:04:40]}
14. Qd3 {[%clk 0:04:48.3]} 14... Qe7 {[%clk 0:04:37.9]} 15. Bg5 {[%clk
0:04:44.9]} 15... h6 {[%clk 0:04:36.5]} 16. Bh4 {[%clk 0:04:44.3]} 16... Rfd8
{[%clk 0:04:35.2]} 17. a4 {[%clk 0:04:40.3]} 17... Nbd7 {[%clk 0:04:24.3]} 18.
Rab1 {[%clk 0:04:36.1]} 18... Ne5 {[%clk 0:04:23.3]} 19. Qe2 {[%clk 0:04:34.3]}
19... Nxf3+ {[%clk 0:04:22.5]} 20. Qxf3 {[%clk 0:04:34.2]} 20... b6 {[%clk
0:04:16]} 21. Qxc6 {[%clk 0:04:29.9]} 21... Rac8 {[%clk 0:04:14.8]} 22. Qb5
{[%clk 0:04:27.9]} 22... g5 {[%clk 0:04:03.6]} 23. Bg3 {[%clk 0:04:26.7]} 23...
Ne4 {[%clk 0:04:02.3]} 24. Rfc1 {[%clk 0:04:10.9]} 24... Nd2 {[%clk 0:03:50.3]}
25. c5 {[%clk 0:03:58.7]} 25... Nxb1 {[%clk 0:03:46.6]} 26. Bd6 {[%clk
0:03:50.4]} 26... Rxd6 {[%clk 0:03:37.3]} 27. cxd6 {[%clk 0:03:47.2]} 27... Qxd6
{[%clk 0:03:37.2]} 28. Qxb1 {[%clk 0:03:44.7]} 28... Qd5 {[%clk 0:03:32.1]} 29.
Qb4 {[%clk 0:03:37.3]} 29... Rc4 {[%clk 0:03:29.9]} 30. Qb3 {[%clk 0:03:32]}
30... Rxd4 {[%clk 0:03:25.9]} 31. Qa3 {[%clk 0:03:25.7]} 31... Rd1+ {[%clk
0:03:22.3]} 32. Rxd1 {[%clk 0:03:21.9]} 32... Qxd1+ {[%clk 0:03:22.2]} 33. Kh2
{[%clk 0:03:21.5]} 33... Qd5 {[%clk 0:03:19.7]} 34. Qb4 {[%clk 0:03:19.3]} 34...
Kg7 {[%clk 0:03:15.7]} 35. c4 {[%clk 0:03:18]} 35... Qe5+ {[%clk 0:03:12.5]} 36.
Kg1 {[%clk 0:03:16.1]} 36... Qa1+ {[%clk 0:03:10]} 37. Kh2 {[%clk 0:03:15]}
37... Qd4 {[%clk 0:03:09.5]} 38. Kg3 {[%clk 0:03:11.4]} 38... h5 {[%clk
0:03:03.9]} 39. f3 {[%clk 0:02:52.8]} 39... h4+ {[%clk 0:03:01.6]} 40. Kh2
{[%clk 0:02:50.4]} 40... Kf6 {[%clk 0:02:58.5]} 41. Qb5 {[%clk 0:02:41.1]} 41...
Qe5+ {[%clk 0:02:55.2]} 42. Qxe5+ {[%clk 0:02:40.7]} 42... Kxe5 {[%clk
0:02:54.9]} 43. g3 {[%clk 0:02:37.5]} 43... hxg3+ {[%clk 0:02:53.3]} 44. Kxg3
{[%clk 0:02:37.4]} 44... f5 {[%clk 0:02:51.7]} 45. f4+ {[%clk 0:02:33.3]} 45...
gxf4+ {[%clk 0:02:50.4]} 46. Kf3 {[%clk 0:02:33]} 46... Kf6 {[%clk 0:02:48.6]}
47. Kxf4 {[%clk 0:02:24.9]} 47... e5+ {[%clk 0:02:48]} 48. Kg3 {[%clk
0:02:23.5]} 48... Kg5 {[%clk 0:02:46.9]} 49. h4+ {[%clk 0:02:20.4]} 49... Kh5
{[%clk 0:02:46.2]} 50. a5 {[%clk 0:02:20]} 50... f4+ {[%clk 0:02:42.8]} 51. Kf3
{[%clk 0:02:17.3]} 51... Kxh4 {[%clk 0:02:42.2]} 52. Kg2 {[%clk 0:01:59.3]}
52... e4 {[%clk 0:02:37.8]} 53. Kf2 {[%clk 0:01:58.1]} 53... Kg4 {[%clk
0:02:36.3]} 54. Kg2 {[%clk 0:01:56.9]} 54... Kf5 {[%clk 0:02:35.6]} 55. Kf2
{[%clk 0:01:56.1]} 55... Ke5 {[%clk 0:02:35.1]} 56. axb6 {[%clk 0:01:54.9]}
56... axb6 {[%clk 0:02:33.3]} 57. Ke2 {[%clk 0:01:54.6]} 57... Kd4 {[%clk
0:02:32.5]} 58. c5 {[%clk 0:01:54.3]} 58... bxc5 {[%clk 0:02:30.9]} 59. Kd2
{[%clk 0:01:54.2]} 59... c4 {[%clk 0:02:29.8]} 60. Ke2 {[%clk 0:01:54.1]} 60...
c3 {[%clk 0:02:28.8]} 61. Kd1 {[%clk 0:01:54]} 61... Kd3 {[%clk 0:02:28]} 62.
Kc1 {[%clk 0:01:53.9]} 62... e3 {[%clk 0:02:27.4]} 63. Kb1 {[%clk 0:01:53.8]}
63... f3 {[%clk 0:02:26.9]} 64. Ka2 {[%clk 0:01:53.7]} 64... f2 {[%clk
0:02:26.3]} 65. Kb3 {[%clk 0:01:53.6]} 65... e2 {[%clk 0:02:25.7]} 66. Kb4
{[%clk 0:01:53.5]} 66... c2 {[%clk 0:02:25]} 67. Kc5 {[%clk 0:01:53.1]} 67...
c1=Q+ {[%clk 0:02:23.7]} 68. Kd5 {[%clk 0:01:53]} 68... e1=Q {[%clk 0:02:22.5]}
69. Kd6 {[%clk 0:01:51.8]} 69... f1=Q {[%clk 0:02:21.5]} 70. Kd5 {[%clk
0:01:51.7]} 70... Qfe2 {[%clk 0:02:20]} 71. Kd6 {[%clk 0:01:51.6]} 71... Q2d2
{[%clk 0:02:18.8]} 72. Kd7 {[%clk 0:01:51.5]} 72... Kd4 {[%clk 0:02:15.4]} 73.
Kd6 {[%clk 0:01:50.4]} 73... Qg5 {[%clk 0:02:11.2]} 74. Kd7 {[%clk 0:01:49.7]}
74... Qd5# {[%clk 0:02:10.1]} 0-1

[Event "Live Chess"]
[Site "Chess.com"]
[Date "2023.05.21"]
[Round "-"]
[White "Purple1szed"]
[Black "HoarseyHorsey"]
[Result "1-0"]
[WhiteElo "1825"]
[BlackElo "1443"]
[TimeControl "300"]
[EndTime "3:17:16 PDT"]
[Termination "Purple1szed won by resignation"]

1. e4 {[%clk 0:04:59.1]} 1... c5 {[%clk 0:04:58.7]} 2. c3 {[%clk 0:04:58.3]}
2... e6 {[%clk 0:04:57.7]} 3. d4 {[%clk 0:04:57.7]} 3... d5 {[%clk 0:04:57]} 4.
exd5 {[%clk 0:04:56.6]} 4... exd5 {[%clk 0:04:56.9]} 5. Nf3 {[%clk 0:04:56.5]}
5... Nc6 {[%clk 0:04:56]} 6. Na3 {[%clk 0:04:53.8]} 6... a6 {[%clk 0:04:49.3]}
7. Bd3 {[%clk 0:04:52.7]} 7... Nf6 {[%clk 0:04:45.6]} 8. O-O {[%clk 0:04:51.6]}
8... Bd6 {[%clk 0:04:44.1]} 9. Re1+ {[%clk 0:04:51.1]} 9... Be6 {[%clk
0:04:42.8]} 10. Bg5 {[%clk 0:04:50.4]} 10... O-O {[%clk 0:04:41.1]} 11. Ne5
{[%clk 0:04:38.6]} 11... Re8 {[%clk 0:04:23.2]} 12. Qc2 {[%clk 0:04:16.6]} 12...
h6 {[%clk 0:04:19.4]} 13. Nxc6 {[%clk 0:04:09.2]} 13... bxc6 {[%clk 0:04:18.1]}
14. Bd2 {[%clk 0:04:06.5]} 14... c4 {[%clk 0:04:14.5]} 15. Bf5 {[%clk
0:04:04.8]} 15... Bxa3 {[%clk 0:04:09.9]} 16. bxa3 {[%clk 0:03:59.2]} 16... Qd7
{[%clk 0:04:09]} 17. Bxe6 {[%clk 0:03:54.9]} 17... Rxe6 {[%clk 0:04:08.2]} 18.
Bf4 {[%clk 0:03:51.9]} 18... Rae8 {[%clk 0:04:05.1]} 19. Be5 {[%clk 0:03:44.8]}
19... Ne4 {[%clk 0:04:01.8]} 20. f3 {[%clk 0:03:41.4]} 20... Nf6 {[%clk
0:03:28.8]} 21. Qa4 {[%clk 0:03:15]} 21... c5 {[%clk 0:03:16.7]} 22. Qxd7 {[%clk
0:03:02.9]} 22... Nxd7 {[%clk 0:03:15.1]} 23. Bg3 {[%clk 0:02:58.2]} 23... cxd4
{[%clk 0:03:10.7]} 24. cxd4 {[%clk 0:02:48]} 24... Re2 {[%clk 0:02:47.9]} 25.
Kf1 {[%clk 0:02:30.6]} 25... Rxe1+ {[%clk 0:02:45.9]} 26. Rxe1 {[%clk
0:02:30.5]} 26... Rxe1+ {[%clk 0:02:44.3]} 27. Kxe1 {[%clk 0:02:27.1]} 27... Nb6
{[%clk 0:02:39.5]} 28. Kd2 {[%clk 0:02:14.7]} 28... Na4 {[%clk 0:02:36.8]} 29.
Kc2 {[%clk 0:02:10.3]} 29... Kf8 {[%clk 0:02:30.6]} 30. Bd6+ {[%clk 0:02:00.9]}
30... Ke8 {[%clk 0:02:27.7]} 31. Bb4 {[%clk 0:01:59.9]} 31... Kd7 {[%clk
0:02:24.8]} 32. Bf8 {[%clk 0:01:58.8]} 32... g6 {[%clk 0:02:18.8]} 33. Bxh6
{[%clk 0:01:57.6]} 33... Ke6 {[%clk 0:02:18.6]} 34. g4 {[%clk 0:01:53.7]} 34...
Nb6 {[%clk 0:02:08.6]} 35. h4 {[%clk 0:01:47.9]} 35... Nd7 {[%clk 0:02:04.4]}
36. Bf4 {[%clk 0:01:43.8]} 36... Nb8 {[%clk 0:01:49]} 37. h5 {[%clk 0:01:40.4]}
37... Nc6 {[%clk 0:01:45.5]} 38. h6 {[%clk 0:01:38.2]} 38... Kf6 {[%clk
0:01:43.3]} 39. g5+ {[%clk 0:01:33.6]} 39... Kf5 {[%clk 0:01:39.6]} 40. h7
{[%clk 0:01:32.9]} 1-0

[Event "Live Chess"]
[Site "Chess.com"]
[Date "2023.05.21"]
[Round "-"]
[White "JamesWallman"]
[Black "JanMur7"]
[Result "0-1"]
[WhiteElo "796"]
[BlackElo "1955"]
[TimeControl "300"]
[EndTime "3:17:28 PDT"]
[Termination "JanMur7 won by checkmate"]

1. e4 {[%clk 0:04:55.9]} 1... e5 {[%clk 0:04:58.9]} 2. Nf3 {[%clk 0:04:51.9]}
2... Nc6 {[%clk 0:04:58.2]} 3. Bc4 {[%clk 0:04:48.7]} 3... Bc5 {[%clk
0:04:57.4]} 4. c3 {[%clk 0:04:46]} 4... Nf6 {[%clk 0:04:56.6]} 5. d3 {[%clk
0:04:43.3]} 5... a6 {[%clk 0:04:55.3]} 6. b4 {[%clk 0:04:41.5]} 6... Bb6 {[%clk
0:04:53.7]} 7. a4 {[%clk 0:04:38.4]} 7... d6 {[%clk 0:04:52.5]} 8. a5 {[%clk
0:04:35]} 8... Ba7 {[%clk 0:04:51.6]} 9. Qb3 {[%clk 0:04:31.7]} 9... Qe7 {[%clk
0:04:49.8]} 10. Ng5 {[%clk 0:04:25.3]} 10... O-O {[%clk 0:04:48.4]} 11. O-O
{[%clk 0:04:20.7]} 11... h6 {[%clk 0:04:47.9]} 12. Nf3 {[%clk 0:04:17.6]} 12...
Bg4 {[%clk 0:04:47.4]} 13. Nh4 {[%clk 0:04:13.8]} 13... Nh5 {[%clk 0:04:46]} 14.
Ng6 {[%clk 0:04:09.9]} 14... Qf6 {[%clk 0:04:37.8]} 15. Nxf8 {[%clk 0:04:03.2]}
15... Rxf8 {[%clk 0:04:32.8]} 16. Be3 {[%clk 0:03:48.8]} 16... Nf4 {[%clk
0:04:19.5]} 17. Bxf4 {[%clk 0:03:42.2]} 17... exf4 {[%clk 0:04:13]} 18. Nd2
{[%clk 0:03:31.4]} 18... f3 {[%clk 0:04:04.4]} 19. gxf3 {[%clk 0:03:15.7]} 19...
Bxf3 {[%clk 0:03:58.6]} 20. Rae1 {[%clk 0:02:59.9]} 20... Qg5# {[%clk
0:03:48.3]} 0-1